[Event "*** Titled Tuesday Blitz"]
[Site "Chess.com"]
[Date "2021.03.16"]
[Round "7"]
[White "QuintilianoR"]
[Black "Omk124"]
[Result "1/2-1/2"]
[WhiteElo "2732"]
[BlackElo "2563"]
[TimeControl "180+1"]
[EndTime "11:17:59 PDT"]
[Termination "Game drawn by repetition"]

1. Nf3 {[%clk 0:03:00.9]} 1... Nf6 {[%clk 0:02:59.5]} 2. c4 {[%clk 0:03:01.4]}
2... g6 {[%clk 0:02:59.6]} 3. d4 {[%clk 0:03:02]} 3... d5 {[%clk 0:02:59.1]} 4.
cxd5 {[%clk 0:03:01.9]} 4... Nxd5 {[%clk 0:02:59.8]} 5. e4 {[%clk 0:03:01.8]}
5... Nb6 {[%clk 0:02:59.5]} 6. h3 {[%clk 0:03:02.2]} 6... Bg7 {[%clk 0:03:00]}
7. Be3 {[%clk 0:03:00.3]} 7... O-O {[%clk 0:03:00]} 8. Nc3 {[%clk 0:02:59.5]}
8... Nc6 {[%clk 0:02:58.9]} 9. Be2 {[%clk 0:02:55.7]} 9... Na5 {[%clk
0:02:41.5]} 10. O-O {[%clk 0:02:51.5]} 10... Nac4 {[%clk 0:02:40.9]} 11. Bc1
{[%clk 0:02:50.7]} 11... e5 {[%clk 0:02:37.8]} 12. d5 {[%clk 0:02:46.4]} 12...
Nd6 {[%clk 0:02:36.7]} 13. Qb3 {[%clk 0:02:24.9]} 13... Bd7 {[%clk 0:02:33.6]}
14. a4 {[%clk 0:02:21.2]} 14... a5 {[%clk 0:02:32.4]} 15. Be3 {[%clk 0:02:20.8]}
15... Kh8 {[%clk 0:02:29.8]} 16. Nd2 {[%clk 0:01:29.5]} 16... f5 {[%clk
0:02:27.2]} 17. Rac1 {[%clk 0:01:25]} 17... fxe4 {[%clk 0:01:59]} 18. Bxb6
{[%clk 0:01:19]} 18... cxb6 {[%clk 0:01:58.3]} 19. Ndxe4 {[%clk 0:01:18.9]}
19... Nf5 {[%clk 0:01:55.8]} 20. Bb5 {[%clk 0:01:04]} 20... Nd4 {[%clk
0:01:54.6]} 21. Qa2 {[%clk 0:01:01.8]} 21... Bxb5 {[%clk 0:01:33.8]} 22. Nxb5
{[%clk 0:01:02.7]} 22... Ne2+ {[%clk 0:01:33.8]} 23. Kh1 {[%clk 0:01:00]} 23...
Nxc1 {[%clk 0:01:32.2]} 24. Rxc1 {[%clk 0:01:00.9]} 24... Qh4 {[%clk 0:01:32.5]}
25. Qc4 {[%clk 0:00:50.2]} 25... Rf4 {[%clk 0:01:22.4]} 26. f3 {[%clk 0:00:46]}
26... Raf8 {[%clk 0:01:09.1]} 27. Qe2 {[%clk 0:00:27.7]} 27... Bh6 {[%clk
0:01:01.6]} 28. Rf1 {[%clk 0:00:27.1]} 28... Qh5 {[%clk 0:00:36.3]} 29. Nbc3
{[%clk 0:00:23.8]} 29... Rh4 {[%clk 0:00:36]} 30. Kg1 {[%clk 0:00:19.5]} 30...
Qf5 {[%clk 0:00:32.8]} 31. Nf2 {[%clk 0:00:19.1]} 31... Rd4 {[%clk 0:00:30]} 32.
Nce4 {[%clk 0:00:19]} 32... Rxd5 {[%clk 0:00:27.1]} 33. Ng4 {[%clk 0:00:19.7]}
33... Bg7 {[%clk 0:00:22.5]} 34. Ne3 {[%clk 0:00:19.9]} 34... Qd7 {[%clk
0:00:21.4]} 35. Nxd5 {[%clk 0:00:20.8]} 35... Qxd5 {[%clk 0:00:22.3]} 36. Rd1
{[%clk 0:00:20.9]} 36... Qc6 {[%clk 0:00:20.7]} 37. Qb5 {[%clk 0:00:19.6]} 37...
Rc8 {[%clk 0:00:18.9]} 38. Rd7 {[%clk 0:00:19.2]} 38... Qxb5 {[%clk 0:00:18.5]}
39. axb5 {[%clk 0:00:18.9]} 39... Rc1+ {[%clk 0:00:17.6]} 40. Kh2 {[%clk
0:00:18.7]} 40... Bh6 {[%clk 0:00:18.3]} 41. Nf6 {[%clk 0:00:17.9]} 41... Bf4+
{[%clk 0:00:18.6]} 42. g3 {[%clk 0:00:18.5]} 42... Rc2+ {[%clk 0:00:18.8]} 43.
Kh1 {[%clk 0:00:18.9]} 43... Rc1+ {[%clk 0:00:19.3]} 44. Kg2 {[%clk 0:00:19.6]}
44... Rc2+ {[%clk 0:00:19.9]} 45. Kf1 {[%clk 0:00:20.3]} 45... Rc1+ {[%clk
0:00:20.6]} 46. Ke2 {[%clk 0:00:20.8]} 46... Rc2+ {[%clk 0:00:13.7]} 47. Kd1
{[%clk 0:00:20.7]} 47... Rc1+ {[%clk 0:00:14]} 48. Ke2 {[%clk 0:00:20.9]} 48...
Rc2+ {[%clk 0:00:14.6]} 49. Kd1 {[%clk 0:00:18.1]} 49... Rc1+ {[%clk 0:00:14.8]}
50. Ke2 {[%clk 0:00:18.3]} 1/2-1/2

[Event "*** Titled Tuesday Blitz"]
[Site "Chess.com"]
[Date "2021.03.16"]
[Round "7"]
[White "GameOverBro"]
[Black "Aslanov_Umid"]
[Result "0-1"]
[WhiteElo "2513"]
[BlackElo "2418"]
[TimeControl "180+1"]
[EndTime "11:18:01 PDT"]
[Termination "Aslanov_Umid won on time"]

1. e4 {[%clk 0:03:00.9]} 1... c5 {[%clk 0:02:59.7]} 2. Ne2 {[%clk 0:02:59.7]}
2... d6 {[%clk 0:02:56.2]} 3. g3 {[%clk 0:02:59]} 3... Nf6 {[%clk 0:02:56.1]} 4.
Bg2 {[%clk 0:02:59.2]} 4... Nc6 {[%clk 0:02:54.9]} 5. O-O {[%clk 0:02:59.2]}
5... e6 {[%clk 0:02:51.8]} 6. c3 {[%clk 0:02:59]} 6... Be7 {[%clk 0:02:51.4]} 7.
d4 {[%clk 0:02:59.2]} 7... cxd4 {[%clk 0:02:52.3]} 8. cxd4 {[%clk 0:02:59]} 8...
O-O {[%clk 0:02:52.8]} 9. Nbc3 {[%clk 0:02:58.6]} 9... Rb8 {[%clk 0:02:48.8]}
10. h3 {[%clk 0:02:54.6]} 10... a6 {[%clk 0:02:42.5]} 11. d5 {[%clk 0:02:46.2]}
11... exd5 {[%clk 0:02:40.8]} 12. exd5 {[%clk 0:02:46.3]} 12... Ne5 {[%clk
0:02:41.1]} 13. f4 {[%clk 0:02:46.6]} 13... Nc4 {[%clk 0:02:38.3]} 14. b3 {[%clk
0:02:44.1]} 14... Nb6 {[%clk 0:02:35.8]} 15. Be3 {[%clk 0:02:39.5]} 15... Bf5
{[%clk 0:02:35.1]} 16. g4 {[%clk 0:02:36.4]} 16... Bd7 {[%clk 0:02:30.7]} 17.
Qd4 {[%clk 0:02:32.9]} 17... Na8 {[%clk 0:02:18.3]} 18. a4 {[%clk 0:02:30.1]}
18... Nc7 {[%clk 0:02:15.7]} 19. Ng3 {[%clk 0:02:25.8]} 19... Nfe8 {[%clk
0:02:13]} 20. g5 {[%clk 0:02:24.2]} 20... g6 {[%clk 0:02:06]} 21. Rae1 {[%clk
0:02:20.7]} 21... Ng7 {[%clk 0:02:04.7]} 22. Nce4 {[%clk 0:02:15.9]} 22... Nf5
{[%clk 0:02:01.8]} 23. Nxf5 {[%clk 0:02:15.5]} 23... Bxf5 {[%clk 0:02:02.7]} 24.
Ng3 {[%clk 0:02:13]} 24... Qd7 {[%clk 0:01:55.7]} 25. Bc1 {[%clk 0:02:05.1]}
25... f6 {[%clk 0:01:48.1]} 26. Bb2 {[%clk 0:02:04.4]} 26... b5 {[%clk
0:01:38.1]} 27. a5 {[%clk 0:01:59.9]} 27... Rbe8 {[%clk 0:01:31.6]} 28. b4
{[%clk 0:01:55.8]} 28... Bxh3 {[%clk 0:01:29.9]} 29. f5 {[%clk 0:01:45.3]} 29...
Bxf5 {[%clk 0:01:27.5]} 30. Nxf5 {[%clk 0:01:42.1]} 30... gxf5 {[%clk
0:01:28.4]} 31. Bh3 {[%clk 0:01:41.2]} 31... Bd8 {[%clk 0:01:19]} 32. Bxf5
{[%clk 0:01:16.4]} 32... Qg7 {[%clk 0:01:17.2]} 33. Kh2 {[%clk 0:00:52.8]} 33...
Re5 {[%clk 0:01:01.8]} 34. gxf6 {[%clk 0:00:49]} 34... Qh6+ {[%clk 0:00:49.1]}
35. Bh3 {[%clk 0:00:48.9]} 35... Bxf6 {[%clk 0:00:46.5]} 36. Rxf6 {[%clk
0:00:22]} 36... Rxf6 {[%clk 0:00:35.6]} 37. Rg1+ {[%clk 0:00:19.7]} 37... Rg6
{[%clk 0:00:28.6]} 38. Rxg6+ {[%clk 0:00:09.5]} 38... Qxg6 {[%clk 0:00:29.5]}
39. Qf2 {[%clk 0:00:03.8]} 39... Re7 {[%clk 0:00:20.3]} 40. Qd4 {[%clk
0:00:03.1]} 40... Re2+ {[%clk 0:00:15.4]} 41. Kh1 {[%clk 0:00:02.6]} 41... Qb1+
{[%clk 0:00:13.2]} 0-1

[Event "*** Titled Tuesday Blitz"]
[Site "Chess.com"]
[Date "2021.03.16"]
[Round "7"]
[White "chessmadara"]
[Black "dosto07"]
[Result "1-0"]
[WhiteElo "2193"]
[BlackElo "2348"]
[TimeControl "180+1"]
[EndTime "11:18:03 PDT"]
[Termination "chessmadara won on time"]

1. e4 {[%clk 0:03:00.9]} 1... e5 {[%clk 0:02:36.3]} 2. Nf3 {[%clk 0:03:00.5]}
2... Nc6 {[%clk 0:02:36.6]} 3. d4 {[%clk 0:03:01]} 3... exd4 {[%clk 0:02:35.2]}
4. Nxd4 {[%clk 0:03:01.9]} 4... Nf6 {[%clk 0:02:34.2]} 5. Nxc6 {[%clk
0:03:01.7]} 5... bxc6 {[%clk 0:02:33.7]} 6. e5 {[%clk 0:03:02.2]} 6... Qe7
{[%clk 0:02:33.6]} 7. Qe2 {[%clk 0:03:01.9]} 7... Nd5 {[%clk 0:02:33.6]} 8. h4
{[%clk 0:03:02.3]} 8... Qe6 {[%clk 0:02:28.6]} 9. g3 {[%clk 0:02:58.5]} 9... g6
{[%clk 0:02:13.2]} 10. Bh3 {[%clk 0:02:49]} 10... f5 {[%clk 0:02:07.3]} 11. exf6
{[%clk 0:02:46.6]} 11... Qxe2+ {[%clk 0:02:05.5]} 12. Kxe2 {[%clk 0:02:47.5]}
12... Nxf6 {[%clk 0:02:02]} 13. Bg5 {[%clk 0:02:42.4]} 13... Bg7 {[%clk
0:02:01.4]} 14. Re1 {[%clk 0:02:34.7]} 14... O-O {[%clk 0:01:55]} 15. c3 {[%clk
0:02:29.5]} 15... Rb8 {[%clk 0:01:54.5]} 16. b3 {[%clk 0:02:21.8]} 16... Ba6+
{[%clk 0:01:51.4]} 17. Kd2 {[%clk 0:02:11.4]} 17... d5 {[%clk 0:01:46.5]} 18. f3
{[%clk 0:02:01.9]} 18... Rfe8 {[%clk 0:01:35.7]} 19. Na3 {[%clk 0:02:01]} 19...
Kf7 {[%clk 0:01:11.9]} 20. Nc2 {[%clk 0:01:59.9]} 20... c5 {[%clk 0:00:59.9]}
21. Rad1 {[%clk 0:01:39.3]} 21... h6 {[%clk 0:00:53.6]} 22. Bf4 {[%clk 0:01:36]}
22... Bc8 {[%clk 0:00:42.8]} 23. Bg2 {[%clk 0:01:20.4]} 23... Rxe1 {[%clk
0:00:30.8]} 24. Rxe1 {[%clk 0:01:19.8]} 24... Ne8 {[%clk 0:00:28.4]} 25. g4
{[%clk 0:01:14.2]} 25... Bb7 {[%clk 0:00:25.6]} 26. Bg3 {[%clk 0:01:10.9]} 26...
Rd8 {[%clk 0:00:24.2]} 27. f4 {[%clk 0:01:07.3]} 27... Nd6 {[%clk 0:00:21]} 28.
c4 {[%clk 0:00:51.8]} 28... dxc4 {[%clk 0:00:18.6]} 29. Bxb7 {[%clk 0:00:44]}
29... Nxb7+ {[%clk 0:00:15.3]} 30. Kc1 {[%clk 0:00:44]} 30... c3 {[%clk
0:00:13]} 31. Ne3 {[%clk 0:00:38.8]} 31... Rd2 {[%clk 0:00:11.4]} 32. Nc2 {[%clk
0:00:27.4]} 32... Nd6 {[%clk 0:00:07.8]} 33. f5 {[%clk 0:00:22]} 33... Rg2
{[%clk 0:00:07]} 34. Bxd6 {[%clk 0:00:16.7]} 34... cxd6 {[%clk 0:00:05.7]} 35.
fxg6+ {[%clk 0:00:15.9]} 35... Kxg6 {[%clk 0:00:06]} 36. Re6+ {[%clk 0:00:08.5]}
36... Kf7 {[%clk 0:00:06]} 37. Rxd6 {[%clk 0:00:08.8]} 37... Be5 {[%clk
0:00:06]} 38. Rd5 {[%clk 0:00:07.2]} 38... Bf4+ {[%clk 0:00:05.9]} 39. Kd1
{[%clk 0:00:06.3]} 39... Ke6 {[%clk 0:00:01.9]} 40. Rd3 {[%clk 0:00:05.2]} 40...
Rg1+ {[%clk 0:00:01.5]} 41. Ke2 {[%clk 0:00:05.1]} 41... Rg2+ {[%clk 0:00:01.8]}
42. Kd1 {[%clk 0:00:05.3]} 1-0

[Event "*** Titled Tuesday Blitz"]
[Site "Chess.com"]
[Date "2021.03.16"]
[Round "7"]
[White "Mikhail_Golubev"]
[Black "eCztery"]
[Result "1-0"]
[WhiteElo "2547"]
[BlackElo "2412"]
[TimeControl "180+1"]
[EndTime "11:18:05 PDT"]
[Termination "Mikhail_Golubev won by resignation"]

1. e4 {[%clk 0:03:00.9]} 1... c5 {[%clk 0:02:53.6]} 2. Nf3 {[%clk 0:03:00.5]}
2... g6 {[%clk 0:02:53.3]} 3. Nc3 {[%clk 0:02:55.5]} 3... Nc6 {[%clk 0:02:47.8]}
4. d4 {[%clk 0:02:55.6]} 4... cxd4 {[%clk 0:02:48.7]} 5. Nxd4 {[%clk 0:02:55.9]}
5... Bg7 {[%clk 0:02:49.6]} 6. Be3 {[%clk 0:02:56]} 6... Nf6 {[%clk 0:02:49.6]}
7. Bc4 {[%clk 0:02:54.2]} 7... O-O {[%clk 0:02:49.4]} 8. Bb3 {[%clk 0:02:48.8]}
8... Ng4 {[%clk 0:02:49.3]} 9. Qxg4 {[%clk 0:02:47.3]} 9... Nxd4 {[%clk
0:02:49.2]} 10. Qd1 {[%clk 0:02:47.3]} 10... Nc6 {[%clk 0:02:49.3]} 11. Qd2
{[%clk 0:02:38.8]} 11... Qa5 {[%clk 0:02:49.2]} 12. O-O {[%clk 0:02:23.3]} 12...
d6 {[%clk 0:02:45.7]} 13. f4 {[%clk 0:02:18.3]} 13... Be6 {[%clk 0:02:39.4]} 14.
Rae1 {[%clk 0:01:49.2]} 14... Rac8 {[%clk 0:02:26.9]} 15. Kh1 {[%clk 0:01:47.9]}
15... a6 {[%clk 0:02:22.5]} 16. Rf3 {[%clk 0:01:27.8]} 16... Qb4 {[%clk
0:01:32.6]} 17. f5 {[%clk 0:01:19.8]} 17... Bxb3 {[%clk 0:01:10.1]} 18. axb3
{[%clk 0:01:20.7]} 18... Ne5 {[%clk 0:00:49.8]} 19. Rg3 {[%clk 0:01:20.5]} 19...
Rfd8 {[%clk 0:00:41.2]} 20. Bg5 {[%clk 0:01:12.6]} 20... Nc6 {[%clk 0:00:38]}
21. Rf1 {[%clk 0:01:00.1]} 21... Qd4 {[%clk 0:00:37.8]} 22. Qe2 {[%clk 0:00:54]}
22... Bf6 {[%clk 0:00:32.5]} 23. fxg6 {[%clk 0:00:36.1]} 23... hxg6 {[%clk
0:00:25.7]} 24. Bxf6 {[%clk 0:00:34.2]} 24... exf6 {[%clk 0:00:25.2]} 25. Nd5
{[%clk 0:00:34.3]} 25... f5 {[%clk 0:00:19]} 26. Rxf5 {[%clk 0:00:31.9]} 26...
Ne5 {[%clk 0:00:16.5]} 27. c3 {[%clk 0:00:27.6]} 27... Qc5 {[%clk 0:00:08.2]}
28. Ne7+ {[%clk 0:00:23.7]} 28... Kg7 {[%clk 0:00:08.6]} 29. Nxc8 {[%clk
0:00:22.1]} 29... Rxc8 {[%clk 0:00:08.7]} 30. Rf1 {[%clk 0:00:20.8]} 30... Qc6
{[%clk 0:00:07]} 31. Qe3 {[%clk 0:00:19.5]} 31... Rh8 {[%clk 0:00:06.7]} 32. Qd4
{[%clk 0:00:18.7]} 32... Qd7 {[%clk 0:00:06.3]} 33. h3 {[%clk 0:00:18.6]} 33...
Qe7 {[%clk 0:00:06.1]} 34. Rgf3 {[%clk 0:00:18.6]} 34... f6 {[%clk 0:00:04.1]}
35. Rg3 {[%clk 0:00:18.5]} 35... g5 {[%clk 0:00:03.6]} 36. Rd1 {[%clk
0:00:18.3]} 36... Rd8 {[%clk 0:00:02.9]} 37. c4 {[%clk 0:00:17.5]} 37... Kg6
{[%clk 0:00:03.2]} 38. Re3 {[%clk 0:00:17.6]} 38... Qe6 {[%clk 0:00:03.1]} 39.
Rf1 {[%clk 0:00:17.4]} 39... Rh8 {[%clk 0:00:03.2]} 40. Rf5 {[%clk 0:00:17.3]}
40... g4 {[%clk 0:00:03.2]} 41. Qd5 {[%clk 0:00:16.5]} 41... gxh3 {[%clk
0:00:04]} 42. Qxe6 {[%clk 0:00:15.7]} 42... Nf3 {[%clk 0:00:02.9]} 43. Rexf3
{[%clk 0:00:15.1]} 43... hxg2+ {[%clk 0:00:03.8]} 44. Kxg2 {[%clk 0:00:15.2]}
1-0

[Event "*** Titled Tuesday Blitz"]
[Site "Chess.com"]
[Date "2021.03.16"]
[Round "7"]
[White "renehp"]
[Black "Susal_De_Silva"]
[Result "0-1"]
[WhiteElo "2466"]
[BlackElo "2639"]
[TimeControl "180+1"]
[EndTime "11:18:09 PDT"]
[Termination "Susal_De_Silva won by resignation"]

1. e4 {[%clk 0:02:59.2]} 1... e5 {[%clk 0:03:00]} 2. Nf3 {[%clk 0:02:58.7]} 2...
Nc6 {[%clk 0:03:00.5]} 3. Bb5 {[%clk 0:02:58.7]} 3... a6 {[%clk 0:03:01]} 4. Ba4
{[%clk 0:02:58.4]} 4... Nf6 {[%clk 0:03:01.4]} 5. O-O {[%clk 0:02:58.1]} 5...
Be7 {[%clk 0:03:01.9]} 6. Re1 {[%clk 0:02:57.8]} 6... b5 {[%clk 0:03:02.5]} 7.
Bb3 {[%clk 0:02:56]} 7... d6 {[%clk 0:03:03.4]} 8. a4 {[%clk 0:02:55.6]} 8...
Bg4 {[%clk 0:03:02.4]} 9. c3 {[%clk 0:02:53.3]} 9... O-O {[%clk 0:03:02.2]} 10.
d3 {[%clk 0:02:51.3]} 10... Na5 {[%clk 0:03:01.1]} 11. Bc2 {[%clk 0:02:50.4]}
11... c5 {[%clk 0:03:00.9]} 12. Nbd2 {[%clk 0:02:50.2]} 12... b4 {[%clk
0:03:00.1]} 13. h3 {[%clk 0:02:48.3]} 13... Bh5 {[%clk 0:03:00.2]} 14. Nf1
{[%clk 0:02:47]} 14... Rb8 {[%clk 0:02:59.2]} 15. g4 {[%clk 0:02:40.4]} 15...
Bg6 {[%clk 0:02:57.8]} 16. Ne3 {[%clk 0:02:40.4]} 16... b3 {[%clk 0:02:57.1]}
17. Bb1 {[%clk 0:02:40.2]} 17... Qc7 {[%clk 0:02:57.4]} 18. Nh4 {[%clk
0:02:39.6]} 18... Qd7 {[%clk 0:02:32.1]} 19. g5 {[%clk 0:02:31.4]} 19... Nh5
{[%clk 0:02:29]} 20. Nef5 {[%clk 0:02:30.7]} 20... h6 {[%clk 0:02:22.7]} 21. Qg4
{[%clk 0:02:16.3]} 21... Rbd8 {[%clk 0:02:02.3]} 22. gxh6 {[%clk 0:02:15.3]}
22... Bxh4 {[%clk 0:01:59]} 23. Qxh4 {[%clk 0:01:53.8]} 23... Bxf5 {[%clk
0:01:45.7]} 24. exf5 {[%clk 0:01:53.7]} 24... g6 {[%clk 0:01:46.1]} 25. d4
{[%clk 0:01:51.8]} 25... Kh8 {[%clk 0:01:29.4]} 26. Bg5 {[%clk 0:01:41.2]} 26...
Rde8 {[%clk 0:01:15.8]} 27. dxc5 {[%clk 0:01:33.9]} 27... Rg8 {[%clk 0:00:39.3]}
28. Bf6+ {[%clk 0:01:25.8]} 28... Nxf6 {[%clk 0:00:39.7]} 29. Qxf6+ {[%clk
0:01:26.6]} 29... Kh7 {[%clk 0:00:40.6]} 30. fxg6+ {[%clk 0:01:25.9]} 30... fxg6
{[%clk 0:00:39.9]} 31. Re3 {[%clk 0:01:18.2]} 31... Nc4 {[%clk 0:00:30.2]} 32.
Rg3 {[%clk 0:01:17.7]} 32... Re6 {[%clk 0:00:30.5]} 33. Qh4 {[%clk 0:01:02.2]}
33... d5 {[%clk 0:00:24.7]} 34. Bd3 {[%clk 0:01:00.9]} 34... Nxb2 {[%clk
0:00:24.1]} 35. Bxa6 {[%clk 0:00:56.6]} 35... e4 {[%clk 0:00:21.3]} 36. Bb5
{[%clk 0:00:55.1]} 36... Qf7 {[%clk 0:00:21.8]} 37. c6 {[%clk 0:00:52.6]} 37...
Nc4 {[%clk 0:00:21.2]} 38. Rd1 {[%clk 0:00:47.5]} 38... Ne5 {[%clk 0:00:19.1]}
39. Rxd5 {[%clk 0:00:41]} 39... b2 {[%clk 0:00:18.8]} 40. Rd7 {[%clk 0:00:31.5]}
40... Nxd7 {[%clk 0:00:18.2]} 41. cxd7 {[%clk 0:00:32.4]} 41... b1=Q+ {[%clk
0:00:18.7]} 42. Kg2 {[%clk 0:00:33]} 42... Qd1 {[%clk 0:00:17.1]} 43. Qg5 {[%clk
0:00:20.7]} 43... Rf6 {[%clk 0:00:14.4]} 44. Qe3 {[%clk 0:00:19.2]} 44... Rf8
{[%clk 0:00:12.3]} 0-1

[Event "*** Titled Tuesday Blitz"]
[Site "Chess.com"]
[Date "2021.03.16"]
[Round "7"]
[White "KarateBaby"]
[Black "ellennilssen"]
[Result "1-0"]
[WhiteElo "2142"]
[BlackElo "2245"]
[TimeControl "180+1"]
[EndTime "11:18:11 PDT"]
[Termination "KarateBaby won by checkmate"]

1. Nf3 {[%clk 0:03:00.9]} 1... Nf6 {[%clk 0:02:52.9]} 2. c4 {[%clk 0:03:01.8]}
2... Nc6 {[%clk 0:02:49.4]} 3. d4 {[%clk 0:02:46.3]} 3... d5 {[%clk 0:02:49.1]}
4. cxd5 {[%clk 0:02:45.7]} 4... Nxd5 {[%clk 0:02:50]} 5. e4 {[%clk 0:02:45.6]}
5... Nf6 {[%clk 0:02:48.9]} 6. Nc3 {[%clk 0:02:42.9]} 6... Bg4 {[%clk
0:02:48.2]} 7. Bc4 {[%clk 0:02:41]} 7... Bxf3 {[%clk 0:02:46.8]} 8. gxf3 {[%clk
0:02:30.9]} 8... Qxd4 {[%clk 0:02:42.5]} 9. Qb3 {[%clk 0:02:27.1]} 9... Na5
{[%clk 0:01:49.2]} 10. Bxf7+ {[%clk 0:02:19.5]} 10... Kd8 {[%clk 0:01:48.5]} 11.
Qc2 {[%clk 0:02:12.3]} 11... e6 {[%clk 0:01:45.4]} 12. Be3 {[%clk 0:02:11.4]}
12... Qd7 {[%clk 0:01:43.4]} 13. Rd1 {[%clk 0:02:12.3]} 13... Bd6 {[%clk
0:01:41.4]} 14. e5 {[%clk 0:02:04.6]} 14... Qxf7 {[%clk 0:01:40.7]} 15. exd6
{[%clk 0:02:05.5]} 15... c6 {[%clk 0:01:26]} 16. Ke2 {[%clk 0:01:55.4]} 16...
Nc4 {[%clk 0:01:22.8]} 17. Qb3 {[%clk 0:01:49]} 17... Ne5 {[%clk 0:01:12.1]} 18.
d7 {[%clk 0:01:45.2]} 18... b6 {[%clk 0:01:09.3]} 19. Ne4 {[%clk 0:01:33.4]}
19... Nfxd7 {[%clk 0:01:05.9]} 20. Ng5 {[%clk 0:01:31.1]} 20... Qf5 {[%clk
0:00:58.2]} 21. Nxe6+ {[%clk 0:01:24.3]} 21... Kc8 {[%clk 0:00:54.1]} 22. f4
{[%clk 0:01:14.9]} 22... Re8 {[%clk 0:00:49.6]} 23. Nd4 {[%clk 0:00:41.4]} 23...
Qh5+ {[%clk 0:00:47.2]} 24. Kd2 {[%clk 0:00:38]} 24... Nf3+ {[%clk 0:00:42.8]}
25. Nxf3 {[%clk 0:00:34.8]} 25... Qxf3 {[%clk 0:00:43.7]} 26. Rc1 {[%clk
0:00:34.9]} 26... Kb7 {[%clk 0:00:40.5]} 27. Rhd1 {[%clk 0:00:31.6]} 27... Rad8
{[%clk 0:00:39]} 28. Kc2 {[%clk 0:00:31.1]} 28... Qe4+ {[%clk 0:00:35.8]} 29.
Rd3 {[%clk 0:00:26.6]} 29... Nf6 {[%clk 0:00:34.9]} 30. Rd1 {[%clk 0:00:25.8]}
30... Nd5 {[%clk 0:00:18.4]} 31. Kc1 {[%clk 0:00:19.2]} 31... Nxf4 {[%clk
0:00:18.3]} 32. Rxd8 {[%clk 0:00:16]} 32... Ne2+ {[%clk 0:00:18.1]} 33. Kd2
{[%clk 0:00:14.8]} 33... Rxd8+ {[%clk 0:00:17.3]} 34. Kxe2 {[%clk 0:00:15.1]}
34... Qg4+ {[%clk 0:00:16.5]} 35. f3 {[%clk 0:00:11.2]} 35... Qg2+ {[%clk
0:00:14.1]} 36. Bf2 {[%clk 0:00:12.1]} 36... Re8+ {[%clk 0:00:12.9]} 37. Kd3
{[%clk 0:00:03.6]} 37... Qxf2 {[%clk 0:00:13]} 38. Qf7+ {[%clk 0:00:03.6]} 38...
Ka6 {[%clk 0:00:10.8]} 39. Qxe8 {[%clk 0:00:03.9]} 39... Qxf3+ {[%clk
0:00:11.3]} 40. Kc2 {[%clk 0:00:03.5]} 40... Qf5+ {[%clk 0:00:06]} 41. Kd2
{[%clk 0:00:03]} 41... Qf2+ {[%clk 0:00:05.7]} 42. Qe2+ {[%clk 0:00:03.9]} 42...
Qxe2+ {[%clk 0:00:04.7]} 43. Kxe2 {[%clk 0:00:04.8]} 43... Kb5 {[%clk
0:00:05.6]} 44. Rd7 {[%clk 0:00:05]} 44... Kc4 {[%clk 0:00:06.5]} 45. Rxg7
{[%clk 0:00:05.9]} 45... b5 {[%clk 0:00:06.9]} 46. Rxh7 {[%clk 0:00:06.8]} 46...
b4 {[%clk 0:00:07.8]} 47. Rxa7 {[%clk 0:00:07.1]} 47... c5 {[%clk 0:00:08]} 48.
Rc7 {[%clk 0:00:07.3]} 48... Kb5 {[%clk 0:00:08.9]} 49. h4 {[%clk 0:00:07.8]}
49... Kb6 {[%clk 0:00:09.8]} 50. Rc8 {[%clk 0:00:07.7]} 50... Kb5 {[%clk
0:00:10.2]} 51. h5 {[%clk 0:00:07.9]} 51... Kb6 {[%clk 0:00:11.1]} 52. h6 {[%clk
0:00:08.5]} 52... Kb5 {[%clk 0:00:12]} 53. h7 {[%clk 0:00:08.4]} 53... Kc4
{[%clk 0:00:12.9]} 54. h8=Q {[%clk 0:00:09]} 54... Kb5 {[%clk 0:00:12.5]} 55.
Qe5 {[%clk 0:00:07.5]} 55... Kc4 {[%clk 0:00:13.4]} 56. Qxc5# {[%clk 0:00:08.1]}
1-0

[Event "*** Titled Tuesday Blitz"]
[Site "Chess.com"]
[Date "2021.03.16"]
[Round "7"]
[White "SF-96"]
[Black "Myshakov_Fedor"]
[Result "1-0"]
[WhiteElo "2589"]
[BlackElo "2363"]
[TimeControl "180+1"]
[EndTime "11:18:16 PDT"]
[Termination "SF-96 won on time"]

1. e4 {[%clk 0:03:00.9]} 1... c6 {[%clk 0:03:00]} 2. d4 {[%clk 0:03:00.7]} 2...
d5 {[%clk 0:03:00.2]} 3. e5 {[%clk 0:03:01.3]} 3... Bf5 {[%clk 0:02:59.8]} 4.
Nd2 {[%clk 0:03:01.8]} 4... e6 {[%clk 0:02:59]} 5. Nb3 {[%clk 0:03:02.3]} 5...
Nd7 {[%clk 0:02:58.8]} 6. Nf3 {[%clk 0:02:58.8]} 6... Ne7 {[%clk 0:02:58.5]} 7.
a4 {[%clk 0:02:55.9]} 7... c5 {[%clk 0:02:57.8]} 8. Nxc5 {[%clk 0:02:50.6]} 8...
Nxc5 {[%clk 0:02:57.5]} 9. dxc5 {[%clk 0:02:51.5]} 9... Nc6 {[%clk 0:02:57.9]}
10. Be3 {[%clk 0:02:47.4]} 10... Qc7 {[%clk 0:02:55.7]} 11. Bb5 {[%clk
0:02:45.2]} 11... Bg4 {[%clk 0:02:50.3]} 12. O-O {[%clk 0:02:35]} 12... Bxf3
{[%clk 0:02:45.5]} 13. Qxf3 {[%clk 0:02:35.9]} 13... Qxe5 {[%clk 0:02:45.6]} 14.
c3 {[%clk 0:02:36.2]} 14... Be7 {[%clk 0:02:44.3]} 15. Bf4 {[%clk 0:02:17.5]}
15... Qf6 {[%clk 0:02:38.9]} 16. b4 {[%clk 0:02:01.8]} 16... O-O {[%clk
0:02:35.5]} 17. Rfe1 {[%clk 0:01:52.7]} 17... a5 {[%clk 0:02:27.5]} 18. Bxc6
{[%clk 0:01:39]} 18... bxc6 {[%clk 0:02:26.2]} 19. Qe3 {[%clk 0:01:39.7]} 19...
Rfc8 {[%clk 0:02:07.8]} 20. Be5 {[%clk 0:01:33.1]} 20... Qf5 {[%clk 0:01:59.3]}
21. Bd4 {[%clk 0:01:32.8]} 21... Rcb8 {[%clk 0:01:49.4]} 22. Qg3 {[%clk
0:01:22]} 22... f6 {[%clk 0:01:34.5]} 23. Qc7 {[%clk 0:01:18.6]} 23... Bf8
{[%clk 0:01:12.3]} 24. Qxc6 {[%clk 0:01:18.5]} 24... axb4 {[%clk 0:01:00.5]} 25.
cxb4 {[%clk 0:01:16.8]} 25... Kh8 {[%clk 0:00:55.6]} 26. b5 {[%clk 0:01:00.2]}
26... e5 {[%clk 0:00:37]} 27. Bb2 {[%clk 0:00:55.7]} 27... Qc2 {[%clk
0:00:29.1]} 28. Rab1 {[%clk 0:00:36.1]} 28... Qxa4 {[%clk 0:00:20.4]} 29. Bc1
{[%clk 0:00:27.3]} 29... d4 {[%clk 0:00:15.3]} 30. Qd5 {[%clk 0:00:18.5]} 30...
Qc2 {[%clk 0:00:14.1]} 31. Rb2 {[%clk 0:00:11.7]} 31... Qxc5 {[%clk 0:00:13.8]}
32. Qd7 {[%clk 0:00:10]} 32... Rd8 {[%clk 0:00:11.1]} 33. Qc6 {[%clk 0:00:07]}
33... Rdc8 {[%clk 0:00:09.6]} 34. Qxc5 {[%clk 0:00:06.6]} 34... Bxc5 {[%clk
0:00:08]} 35. Bd2 {[%clk 0:00:05.9]} 35... Ba3 {[%clk 0:00:07.7]} 36. Rb3 {[%clk
0:00:05.7]} 36... Bc5 {[%clk 0:00:07.4]} 37. b6 {[%clk 0:00:04.3]} 37... Rab8
{[%clk 0:00:07.4]} 38. b7 {[%clk 0:00:04.9]} 38... Rc7 {[%clk 0:00:07.1]} 39.
Reb1 {[%clk 0:00:05.6]} 39... e4 {[%clk 0:00:05]} 40. Rb5 {[%clk 0:00:05.9]}
40... h5 {[%clk 0:00:03.2]} 41. Ba5 {[%clk 0:00:05.4]} 41... Rc6 {[%clk
0:00:02]} 42. h4 {[%clk 0:00:05]} 42... Kh7 {[%clk 0:00:01.8]} 43. Rc1 {[%clk
0:00:05.4]} 1-0